[Event "Late-Titled-Tuesday-Blitz-September-05-2023"]
[Site "Chess.com"]
[Date "2023.09.05"]
[Round "4"]
[White "boguszp"]
[Black "Gogolev_Artemy"]
[Result "0-1"]
[WhiteElo "2089"]
[BlackElo "2429"]
[TimeControl "180+1"]
[EndTime "14:39:06 PDT"]
[Termination "Gogolev_Artemy won by resignation"]

1. d4 {[%clk 0:03:00.9]} 1... d5 {[%clk 0:02:59.6]} 2. Nf3 {[%clk 0:02:59.4]}
2... Nf6 {[%clk 0:02:59.5]} 3. c4 {[%clk 0:02:58]} 3... c6 {[%clk 0:02:59.4]} 4.
Nc3 {[%clk 0:02:56.8]} 4... e6 {[%clk 0:02:59.4]} 5. e3 {[%clk 0:02:51.5]} 5...
Nbd7 {[%clk 0:02:58.2]} 6. Bd3 {[%clk 0:02:48.9]} 6... dxc4 {[%clk 0:02:58.8]}
7. Bxc4 {[%clk 0:02:48.4]} 7... b5 {[%clk 0:02:59.4]} 8. Bd3 {[%clk 0:02:48.1]}
8... Bb7 {[%clk 0:02:59.6]} 9. O-O {[%clk 0:02:44.6]} 9... a6 {[%clk 0:02:59.8]}
10. a4 {[%clk 0:02:43.1]} 10... b4 {[%clk 0:02:57.8]} 11. Ne4 {[%clk 0:02:42.4]}
11... c5 {[%clk 0:02:58.3]} 12. Nxc5 {[%clk 0:02:30.2]} 12... Nxc5 {[%clk
0:02:57.7]} 13. dxc5 {[%clk 0:02:30.8]} 13... Bxc5 {[%clk 0:02:57.2]} 14. Qe2
{[%clk 0:02:30.7]} 14... O-O {[%clk 0:02:56.4]} 15. Rd1 {[%clk 0:02:30.3]} 15...
Qa5 {[%clk 0:02:48.2]} 16. b3 {[%clk 0:02:29.6]} 16... Rfd8 {[%clk 0:02:40.6]}
17. Bb2 {[%clk 0:02:29.1]} 17... Ne4 {[%clk 0:02:41.5]} 18. Rac1 {[%clk
0:02:24.3]} 18... h6 {[%clk 0:02:38]} 19. Ne5 {[%clk 0:02:21.9]} 19... Nc3
{[%clk 0:02:31.9]} 20. Qe1 {[%clk 0:02:10.1]} 20... Nxd1 {[%clk 0:02:24.3]} 21.
Qxd1 {[%clk 0:02:07]} 21... Bd6 {[%clk 0:02:17.9]} 22. Nc4 {[%clk 0:02:00.4]}
22... Qg5 {[%clk 0:02:17.2]} 23. g3 {[%clk 0:01:49.6]} 23... Be7 {[%clk
0:02:07.2]} 24. h4 {[%clk 0:01:36.6]} 24... Qd5 {[%clk 0:02:06.3]} 25. Bh7+
{[%clk 0:01:03.6]} 25... Kxh7 {[%clk 0:02:03.9]} 26. Qxd5 {[%clk 0:01:03.7]}
26... Bxd5 {[%clk 0:02:01]} 27. Nb6 {[%clk 0:01:01.7]} 27... Rab8 {[%clk
0:01:59.7]} 28. a5 {[%clk 0:00:59]} 28... Bxb3 {[%clk 0:01:51.2]} 29. Rc7 {[%clk
0:00:54.9]} 29... Bf6 {[%clk 0:01:41]} 30. Bxf6 {[%clk 0:00:51.3]} 30... gxf6
{[%clk 0:01:41.9]} 31. Rxf7+ {[%clk 0:00:50.8]} 31... Kg6 {[%clk 0:01:41.8]} 32.
Ra7 {[%clk 0:00:49.3]} 32... Bd5 {[%clk 0:01:38.5]} 33. Rxa6 {[%clk 0:00:47.9]}
33... Bf3 {[%clk 0:01:38.1]} 34. Kh2 {[%clk 0:00:41.1]} 34... Rd1 {[%clk
0:01:33.6]} 35. g4 {[%clk 0:00:41.4]} 35... b3 {[%clk 0:01:29.2]} 36. Nc4 {[%clk
0:00:39.5]} 36... Bxg4 {[%clk 0:01:03.5]} 37. Kg3 {[%clk 0:00:36.7]} 37... Be2
{[%clk 0:01:03.6]} 38. Nb2 {[%clk 0:00:34.3]} 38... Bxa6 {[%clk 0:01:02.6]} 39.
Nxd1 {[%clk 0:00:32.1]} 39... b2 {[%clk 0:01:03.2]} 40. Nxb2 {[%clk 0:00:32.1]}
40... Rxb2 {[%clk 0:01:04.1]} 41. f4 {[%clk 0:00:29.8]} 41... Bd3 {[%clk
0:01:02.6]} 42. Kf3 {[%clk 0:00:28.8]} 42... f5 {[%clk 0:01:02.2]} 43. e4 {[%clk
0:00:24.2]} 43... Bxe4+ {[%clk 0:01:01.9]} 44. Ke3 {[%clk 0:00:24.2]} 44... Rb5
{[%clk 0:01:02.8]} 45. a6 {[%clk 0:00:21]} 45... Ra5 {[%clk 0:01:03.4]} 0-1

[Event "Late-Titled-Tuesday-Blitz-September-05-2023"]
[Site "Chess.com"]
[Date "2023.09.05"]
[Round "4"]
[White "Athanasios2"]
[Black "MFatigue"]
[Result "1-0"]
[WhiteElo "2720"]
[BlackElo "2513"]
[TimeControl "180+1"]
[EndTime "14:39:15 PDT"]
[Termination "Athanasios2 won by resignation"]

1. Nf3 {[%clk 0:03:00.9]} 1... d5 {[%clk 0:02:59.7]} 2. e3 {[%clk 0:02:57.8]}
2... Nf6 {[%clk 0:02:59.3]} 3. c4 {[%clk 0:02:58]} 3... e6 {[%clk 0:02:59.3]} 4.
Nc3 {[%clk 0:02:58.5]} 4... Be7 {[%clk 0:02:58]} 5. b3 {[%clk 0:02:59]} 5... O-O
{[%clk 0:02:58.2]} 6. Bb2 {[%clk 0:02:59.6]} 6... c5 {[%clk 0:02:56.5]} 7. cxd5
{[%clk 0:02:59.2]} 7... Nxd5 {[%clk 0:02:53.3]} 8. Be2 {[%clk 0:02:55.7]} 8...
Bf6 {[%clk 0:02:49.8]} 9. O-O {[%clk 0:02:50.4]} 9... Nc6 {[%clk 0:02:48.8]} 10.
Rc1 {[%clk 0:02:37.2]} 10... b6 {[%clk 0:02:41.4]} 11. Qc2 {[%clk 0:02:29.6]}
11... Ncb4 {[%clk 0:02:19.4]} 12. Qb1 {[%clk 0:02:27.6]} 12... Nxc3 {[%clk
0:02:04.2]} 13. dxc3 {[%clk 0:02:23.4]} 13... Nc6 {[%clk 0:02:04]} 14. Rfd1
{[%clk 0:02:21.2]} 14... Qc7 {[%clk 0:02:04.2]} 15. c4 {[%clk 0:02:08.7]} 15...
e5 {[%clk 0:01:40.5]} 16. Nd2 {[%clk 0:02:02.6]} 16... g6 {[%clk 0:01:26.3]} 17.
Ne4 {[%clk 0:02:01.2]} 17... Bg7 {[%clk 0:01:26.9]} 18. Nc3 {[%clk 0:01:59.2]}
18... Ne7 {[%clk 0:01:02]} 19. Nb5 {[%clk 0:01:54.8]} 19... Qb8 {[%clk
0:01:02.1]} 20. Qa1 {[%clk 0:01:40.8]} 20... Bb7 {[%clk 0:00:38.4]} 21. Nd6
{[%clk 0:01:33.8]} 21... Nc6 {[%clk 0:00:26.6]} 22. Bf3 {[%clk 0:01:31.1]} 22...
Na5 {[%clk 0:00:19.7]} 23. Nxb7 {[%clk 0:01:29.3]} 23... Nxb7 {[%clk 0:00:20.6]}
24. Rd7 {[%clk 0:01:29.3]} 24... Nd8 {[%clk 0:00:17.6]} 25. Rcd1 {[%clk
0:01:26.9]} 25... Ne6 {[%clk 0:00:16.2]} 26. h3 {[%clk 0:01:20.5]} 26... f6
{[%clk 0:00:12.7]} 27. Qb1 {[%clk 0:01:11]} 27... Ng5 {[%clk 0:00:11.9]} 28.
Bd5+ {[%clk 0:01:10.5]} 28... Kh8 {[%clk 0:00:12]} 29. h4 {[%clk 0:01:08.3]}
29... Qe8 {[%clk 0:00:04]} 30. Bxa8 {[%clk 0:01:06.7]} 30... Nh3+ {[%clk
0:00:04.4]} 31. gxh3 {[%clk 0:01:04.6]} 31... Qxa8 {[%clk 0:00:05.3]} 32. R7d5
{[%clk 0:01:03]} 32... Qc8 {[%clk 0:00:04.6]} 33. Rd7 {[%clk 0:01:02.1]} 33...
Qc6 {[%clk 0:00:04.3]} 34. R1d5 {[%clk 0:01:01.1]} 34... Qe6 {[%clk 0:00:04.8]}
35. Qf1 {[%clk 0:00:59.3]} 35... g5 {[%clk 0:00:04]} 36. hxg5 {[%clk 0:00:56.7]}
36... fxg5 {[%clk 0:00:04.9]} 37. Rxg7 {[%clk 0:00:53]} 37... Kxg7 {[%clk
0:00:04.6]} 38. Rxe5 {[%clk 0:00:53.5]} 38... Qf6 {[%clk 0:00:03.6]} 1-0

[Event "Late-Titled-Tuesday-Blitz-September-05-2023"]
[Site "Chess.com"]
[Date "2023.09.05"]
[Round "4"]
[White "IMGC"]
[Black "GianmarcoVaR"]
[Result "1-0"]
[WhiteElo "2426"]
[BlackElo "2616"]
[TimeControl "180+1"]
[EndTime "14:39:15 PDT"]
[Termination "IMGC won by resignation"]

1. b3 {[%clk 0:03:00]} 1... d5 {[%clk 0:03:00.1]} 2. Bb2 {[%clk 0:03:00.9]} 2...
Nf6 {[%clk 0:03:00.6]} 3. e3 {[%clk 0:03:01.3]} 3... c6 {[%clk 0:03:01]} 4. Nf3
{[%clk 0:03:01.4]} 4... Bf5 {[%clk 0:03:01.6]} 5. d3 {[%clk 0:03:01.3]} 5... h6
{[%clk 0:03:01.2]} 6. Nbd2 {[%clk 0:03:01.8]} 6... Bh7 {[%clk 0:03:01.4]} 7. Be2
{[%clk 0:02:59.9]} 7... Nbd7 {[%clk 0:03:01.2]} 8. O-O {[%clk 0:03:00.8]} 8...
e6 {[%clk 0:03:01.5]} 9. a3 {[%clk 0:03:01.2]} 9... Bd6 {[%clk 0:03:01.9]} 10.
c4 {[%clk 0:03:01.3]} 10... O-O {[%clk 0:03:02.2]} 11. Qc2 {[%clk 0:02:57.8]}
11... a5 {[%clk 0:03:02.4]} 12. Rfd1 {[%clk 0:02:51.5]} 12... Qe7 {[%clk
0:03:01.8]} 13. e4 {[%clk 0:02:38.5]} 13... dxe4 {[%clk 0:02:30.6]} 14. Nxe4
{[%clk 0:02:37.1]} 14... Nxe4 {[%clk 0:01:13.4]} 15. dxe4 {[%clk 0:02:38]} 15...
Nc5 {[%clk 0:01:12.2]} 16. Qc3 {[%clk 0:02:38.3]} 16... e5 {[%clk 0:01:07]} 17.
Nxe5 {[%clk 0:02:13.4]} 17... Nxe4 {[%clk 0:00:54.5]} 18. Qd4 {[%clk 0:01:19.7]}
18... Bc5 {[%clk 0:00:42.1]} 19. Qd7 {[%clk 0:00:53.1]} 19... Qh4 {[%clk
0:00:20.5]} 20. g3 {[%clk 0:00:29.6]} 20... Bxf2+ {[%clk 0:00:12.3]} 21. Kg2
{[%clk 0:00:30.2]} 21... Bxg3 {[%clk 0:00:09.5]} 22. Nf3 {[%clk 0:00:30.8]}
22... Qf4 {[%clk 0:00:03.7]} 23. Bc1 {[%clk 0:00:22.2]} 23... Qg5 {[%clk
0:00:02.1]} 24. Bxg5 {[%clk 0:00:21.5]} 24... hxg5 {[%clk 0:00:01]} 25. hxg3
{[%clk 0:00:20.8]} 1-0

[Event "Late-Titled-Tuesday-Blitz-September-05-2023"]
[Site "Chess.com"]
[Date "2023.09.05"]
[Round "4"]
[White "PapaieDudu"]
[Black "WindWhistler11"]
[Result "0-1"]
[WhiteElo "2298"]
[BlackElo "2476"]
[TimeControl "180+1"]
[EndTime "14:39:17 PDT"]
[Termination "WindWhistler11 won on time"]

1. e4 {[%clk 0:03:00.9]} 1... e6 {[%clk 0:02:57.1]} 2. Nf3 {[%clk 0:02:56.7]}
2... d5 {[%clk 0:02:57.7]} 3. e5 {[%clk 0:02:56.9]} 3... c5 {[%clk 0:02:57.4]}
4. b4 {[%clk 0:02:56.8]} 4... c4 {[%clk 0:02:56.9]} 5. a3 {[%clk 0:02:48.4]}
5... a5 {[%clk 0:02:57.3]} 6. b5 {[%clk 0:02:41]} 6... Nd7 {[%clk 0:02:56.8]} 7.
d4 {[%clk 0:02:35.9]} 7... cxd3 {[%clk 0:02:56.7]} 8. cxd3 {[%clk 0:02:35.7]}
8... Nc5 {[%clk 0:02:46.3]} 9. b6 {[%clk 0:02:12.4]} 9... Qxb6 {[%clk 0:02:40]}
10. Nbd2 {[%clk 0:02:05.5]} 10... Bd7 {[%clk 0:02:32.2]} 11. Rb1 {[%clk
0:01:55.3]} 11... Qc7 {[%clk 0:02:30.6]} 12. Qe2 {[%clk 0:01:40.7]} 12... Ne7
{[%clk 0:02:06.7]} 13. Bb2 {[%clk 0:00:58.3]} 13... Na4 {[%clk 0:01:59.6]} 14.
Rc1 {[%clk 0:00:56.6]} 14... Nc6 {[%clk 0:01:55]} 15. Ba1 {[%clk 0:00:45.7]}
15... Bxa3 {[%clk 0:01:52.2]} 16. Rc2 {[%clk 0:00:42.7]} 16... Qb6 {[%clk
0:01:26.8]} 17. d4 {[%clk 0:00:39.4]} 17... Nb4 {[%clk 0:01:24.8]} 18. Nb3
{[%clk 0:00:15.8]} 18... Nxc2+ {[%clk 0:01:15]} 19. Qxc2 {[%clk 0:00:16.1]}
19... Rc8 {[%clk 0:01:12.3]} 20. Qd1 {[%clk 0:00:10.4]} 20... Bb4+ {[%clk
0:01:07]} 21. Ke2 {[%clk 0:00:09.4]} 21... Nc3+ {[%clk 0:01:03.5]} 22. Bxc3
{[%clk 0:00:09.9]} 22... Rxc3 {[%clk 0:01:03.5]} 23. Nfd2 {[%clk 0:00:07.8]}
23... Ba4 {[%clk 0:00:50.2]} 24. f4 {[%clk 0:00:04.9]} 24... O-O {[%clk
0:00:35.6]} 25. Kf2 {[%clk 0:00:04.6]} 25... Bxb3 {[%clk 0:00:34.9]} 26. Nxb3
{[%clk 0:00:04.8]} 26... Rxb3 {[%clk 0:00:35.6]} 27. Qxb3 {[%clk 0:00:04.1]}
27... Be1+ {[%clk 0:00:36.3]} 28. Kxe1 {[%clk 0:00:03]} 28... Qxb3 {[%clk
0:00:36.9]} 29. Be2 {[%clk 0:00:02.4]} 29... Qe3 {[%clk 0:00:35.1]} 30. Rf1
{[%clk 0:00:01.4]} 30... Rc8 {[%clk 0:00:34.7]} 0-1

[Event "Late-Titled-Tuesday-Blitz-September-05-2023"]
[Site "Chess.com"]
[Date "2023.09.05"]
[Round "4"]
[White "Sinquefield"]
[Black "IMRosen"]
[Result "0-1"]
[WhiteElo "2465"]
[BlackElo "2602"]
[TimeControl "180+1"]
[EndTime "14:39:23 PDT"]
[Termination "IMRosen won on time"]

1. e4 {[%clk 0:02:58.5]} 1... e6 {[%clk 0:03:00.9]} 2. d4 {[%clk 0:02:56]} 2...
Ne7 {[%clk 0:03:01.8]} 3. f4 {[%clk 0:02:55.2]} 3... d6 {[%clk 0:03:02.7]} 4. c4
{[%clk 0:02:55.1]} 4... Nd7 {[%clk 0:03:03.6]} 5. Nc3 {[%clk 0:02:55.8]} 5...
Ng6 {[%clk 0:03:04.1]} 6. Nf3 {[%clk 0:02:56.1]} 6... Nb6 {[%clk 0:03:04.6]} 7.
Bd3 {[%clk 0:02:56]} 7... Be7 {[%clk 0:03:04.4]} 8. Be3 {[%clk 0:02:56.5]} 8...
Bd7 {[%clk 0:03:04.7]} 9. Qe2 {[%clk 0:02:55.7]} 9... c6 {[%clk 0:03:05.1]} 10.
f5 {[%clk 0:02:54.7]} 10... Nh4 {[%clk 0:02:56.6]} 11. Nxh4 {[%clk 0:02:54.1]}
11... Bxh4+ {[%clk 0:02:57.4]} 12. g3 {[%clk 0:02:54.3]} 12... Bf6 {[%clk
0:02:51.6]} 13. O-O {[%clk 0:02:47.8]} 13... exf5 {[%clk 0:02:47.3]} 14. exf5
{[%clk 0:02:45]} 14... O-O {[%clk 0:02:47.5]} 15. Ne4 {[%clk 0:02:28.9]} 15...
d5 {[%clk 0:02:04.2]} 16. Nxf6+ {[%clk 0:02:27.2]} 16... Qxf6 {[%clk 0:02:05.1]}
17. c5 {[%clk 0:02:27.5]} 17... Nc4 {[%clk 0:02:02.8]} 18. Bxc4 {[%clk
0:02:26.6]} 18... dxc4 {[%clk 0:02:03]} 19. Qxc4 {[%clk 0:02:26.9]} 19... Bxf5
{[%clk 0:01:49.1]} 20. d5 {[%clk 0:02:05.1]} 20... Qe7 {[%clk 0:01:13.2]} 21.
Bf4 {[%clk 0:01:52.9]} 21... cxd5 {[%clk 0:01:12.6]} 22. Qxd5 {[%clk 0:01:52.6]}
22... Be4 {[%clk 0:01:01.4]} 23. Qd4 {[%clk 0:01:48]} 23... Rfe8 {[%clk
0:00:54.8]} 24. Bd6 {[%clk 0:01:43.7]} 24... Qe6 {[%clk 0:00:52.1]} 25. Rae1
{[%clk 0:01:40.9]} 25... f5 {[%clk 0:00:51.8]} 26. a4 {[%clk 0:01:33.6]} 26...
Rad8 {[%clk 0:00:50.3]} 27. b4 {[%clk 0:01:30]} 27... Qa2 {[%clk 0:00:46]} 28.
Rf2 {[%clk 0:01:12.7]} 28... Qxa4 {[%clk 0:00:45.7]} 29. Qc4+ {[%clk 0:00:25.1]}
29... Kh8 {[%clk 0:00:42.8]} 30. Ra2 {[%clk 0:00:18.1]} 30... Qc6 {[%clk
0:00:38.6]} 31. b5 {[%clk 0:00:13.5]} 31... Qc8 {[%clk 0:00:38.7]} 32. Rxa7
{[%clk 0:00:11.6]} 32... Rxd6 {[%clk 0:00:33.1]} 0-1

[Event "Late-Titled-Tuesday-Blitz-September-05-2023"]
[Site "Chess.com"]
[Date "2023.09.05"]
[Round "4"]
[White "angryspacevoid"]
[Black "geordie_derraugh"]
[Result "0-1"]
[WhiteElo "2586"]
[BlackElo "2479"]
[TimeControl "180+1"]
[EndTime "14:39:24 PDT"]
[Termination "geordie_derraugh won by resignation"]

1. e4 {[%clk 0:02:47.9]} 1... e5 {[%clk 0:02:57.3]} 2. Nf3 {[%clk 0:02:47.9]}
2... Nc6 {[%clk 0:02:57.1]} 3. c3 {[%clk 0:02:44.7]} 3... d5 {[%clk 0:02:55.1]}
4. Qa4 {[%clk 0:02:44.2]} 4... dxe4 {[%clk 0:02:52.6]} 5. Nxe5 {[%clk
0:02:43.6]} 5... Qd5 {[%clk 0:02:46.8]} 6. Nxc6 {[%clk 0:02:43.1]} 6... bxc6
{[%clk 0:02:46.8]} 7. Bc4 {[%clk 0:02:42.4]} 7... Qd7 {[%clk 0:02:34.3]} 8. O-O
{[%clk 0:02:39.5]} 8... Nf6 {[%clk 0:02:34.1]} 9. Re1 {[%clk 0:02:20.2]} 9...
Be7 {[%clk 0:02:33.5]} 10. d3 {[%clk 0:02:19.6]} 10... exd3 {[%clk 0:02:31.5]}
11. Qa3 {[%clk 0:02:17.1]} 11... Kf8 {[%clk 0:02:25.7]} 12. Qb3 {[%clk
0:02:11.8]} 12... Bc5 {[%clk 0:02:21.6]} 13. Be3 {[%clk 0:02:07.7]} 13... Bxe3
{[%clk 0:02:16.5]} 14. Rxe3 {[%clk 0:02:07.4]} 14... d2 {[%clk 0:02:11.7]} 15.
Qa3+ {[%clk 0:01:46]} 15... Kg8 {[%clk 0:02:09.9]} 16. Nxd2 {[%clk 0:01:46.6]}
16... Qd6 {[%clk 0:01:30.6]} 17. Rae1 {[%clk 0:01:25.3]} 17... h5 {[%clk
0:01:24.9]} 18. Qxd6 {[%clk 0:00:47.6]} 18... cxd6 {[%clk 0:01:24.3]} 19. Re7
{[%clk 0:00:46.1]} 19... d5 {[%clk 0:01:22.5]} 20. Bb3 {[%clk 0:00:41.7]} 20...
Bd7 {[%clk 0:01:16.6]} 21. Nf3 {[%clk 0:00:36.3]} 21... Re8 {[%clk 0:01:10.9]}
22. Rxe8+ {[%clk 0:00:31.5]} 22... Bxe8 {[%clk 0:01:07.2]} 23. h3 {[%clk
0:00:26.2]} 23... Kf8 {[%clk 0:01:05.4]} 24. Nd4 {[%clk 0:00:20.8]} 24... Ne4
{[%clk 0:01:03.3]} 25. f3 {[%clk 0:00:19.8]} 25... Nc5 {[%clk 0:01:03.2]} 26.
Bc2 {[%clk 0:00:19.6]} 26... Rh6 {[%clk 0:01:03.2]} 27. Nf5 {[%clk 0:00:19.6]}
27... Rf6 {[%clk 0:01:01.7]} 28. Nxg7 {[%clk 0:00:19.6]} 28... Kxg7 {[%clk
0:00:58]} 29. Rxe8 {[%clk 0:00:19.3]} 29... Rd6 {[%clk 0:00:57.7]} 30. Re7
{[%clk 0:00:19.3]} 30... a6 {[%clk 0:00:56.7]} 31. Kf2 {[%clk 0:00:18.9]} 31...
d4 {[%clk 0:00:56.9]} 32. b4 {[%clk 0:00:17.2]} 32... d3 {[%clk 0:00:54.9]} 33.
Bd1 {[%clk 0:00:16]} 33... Ne6 {[%clk 0:00:53.6]} 34. Ra7 {[%clk 0:00:12.5]}
34... c5 {[%clk 0:00:53.5]} 35. a3 {[%clk 0:00:11.1]} 35... cxb4 {[%clk
0:00:52]} 36. axb4 {[%clk 0:00:12]} 36... Nf4 {[%clk 0:00:38.5]} 37. Re7 {[%clk
0:00:10.7]} 37... Nd5 {[%clk 0:00:37.8]} 38. Ke1 {[%clk 0:00:06.8]} 38... Nxe7
{[%clk 0:00:37.2]} 0-1

[Event "Late-Titled-Tuesday-Blitz-September-05-2023"]
[Site "Chess.com"]
[Date "2023.09.05"]
[Round "4"]
[White "PassedPawnMustPushed"]
[Black "allvim"]
[Result "1-0"]
[WhiteElo "2141"]
[BlackElo "2296"]
[TimeControl "180+1"]
[EndTime "14:39:24 PDT"]
[Termination "PassedPawnMustPushed won by resignation"]

1. e4 {[%clk 0:03:00.9]} 1... c5 {[%clk 0:03:00.5]} 2. c3 {[%clk 0:03:01]} 2...
d5 {[%clk 0:02:57.4]} 3. exd5 {[%clk 0:03:00.6]} 3... Qxd5 {[%clk 0:02:58.3]} 4.
Nf3 {[%clk 0:03:00.9]} 4... Nc6 {[%clk 0:02:56.7]} 5. d4 {[%clk 0:02:56.5]} 5...
Bg4 {[%clk 0:02:56.8]} 6. Be2 {[%clk 0:02:56.7]} 6... Nf6 {[%clk 0:02:56]} 7.
O-O {[%clk 0:02:54.8]} 7... e6 {[%clk 0:02:56.4]} 8. h3 {[%clk 0:02:55.1]} 8...
Bh5 {[%clk 0:02:56.4]} 9. c4 {[%clk 0:02:55.2]} 9... Qd8 {[%clk 0:02:55.1]} 10.
dxc5 {[%clk 0:02:44.5]} 10... Bxc5 {[%clk 0:02:56]} 11. Nc3 {[%clk 0:02:44.3]}
11... O-O {[%clk 0:02:55.4]} 12. Bg5 {[%clk 0:02:41.4]} 12... Be7 {[%clk
0:02:47.4]} 13. Bf4 {[%clk 0:02:36.4]} 13... a6 {[%clk 0:02:38.5]} 14. Qb3
{[%clk 0:02:33.2]} 14... Qc8 {[%clk 0:02:24]} 15. Na4 {[%clk 0:02:25.9]} 15...
Nd7 {[%clk 0:02:13.2]} 16. Rfd1 {[%clk 0:02:17.5]} 16... Nc5 {[%clk 0:02:13.2]}
17. Nxc5 {[%clk 0:02:09.9]} 17... Bxc5 {[%clk 0:02:14.1]} 18. Bd6 {[%clk
0:02:09.6]} 18... Bxd6 {[%clk 0:01:32.4]} 19. Rxd6 {[%clk 0:02:10.5]} 19... Qc7
{[%clk 0:01:29.3]} 20. c5 {[%clk 0:01:52.7]} 20... Rfd8 {[%clk 0:01:05.1]} 21.
Rad1 {[%clk 0:01:52.2]} 21... Rxd6 {[%clk 0:00:39.1]} 22. cxd6 {[%clk
0:01:53.1]} 22... Qd7 {[%clk 0:00:39.5]} 23. Qb6 {[%clk 0:01:19]} 23... Rc8
{[%clk 0:00:30.9]} 24. b4 {[%clk 0:01:02.1]} 24... f6 {[%clk 0:00:16.1]} 25. g4
{[%clk 0:00:59.7]} 25... Be8 {[%clk 0:00:15.9]} 26. b5 {[%clk 0:00:59.8]} 26...
axb5 {[%clk 0:00:15.3]} 27. Bxb5 {[%clk 0:01:00.7]} 27... Qf7 {[%clk 0:00:13.9]}
28. a4 {[%clk 0:00:52.5]} 28... Ra8 {[%clk 0:00:06.1]} 29. Qc7 {[%clk
0:00:45.8]} 29... Bd7 {[%clk 0:00:03.4]} 30. Qxb7 {[%clk 0:00:36.4]} 30... Rb8
{[%clk 0:00:03.9]} 31. Qc7 {[%clk 0:00:32.7]} 31... Rc8 {[%clk 0:00:02.7]} 32.
Bxc6 {[%clk 0:00:28.7]} 32... Rxc7 {[%clk 0:00:02.8]} 33. dxc7 {[%clk
0:00:29.6]} 33... Bxc6 {[%clk 0:00:02.2]} 34. c8=Q+ {[%clk 0:00:29.5]} 1-0

[Event "Late-Titled-Tuesday-Blitz-September-05-2023"]
[Site "Chess.com"]
[Date "2023.09.05"]
[Round "4"]
[White "Djager97"]
[Black "BeanScreen"]
[Result "0-1"]
[WhiteElo "2509"]
[BlackElo "2710"]
[TimeControl "180+1"]
[EndTime "14:39:29 PDT"]
[Termination "BeanScreen won on time"]

1. e4 {[%clk 0:03:00.9]} 1... e5 {[%clk 0:02:59.9]} 2. Nf3 {[%clk 0:03:00.7]}
2... Nc6 {[%clk 0:03:00.4]} 3. d4 {[%clk 0:03:01.2]} 3... exd4 {[%clk
0:03:00.3]} 4. Nxd4 {[%clk 0:03:02.1]} 4... Bc5 {[%clk 0:03:00.3]} 5. Nb3 {[%clk
0:03:02.1]} 5... Bb6 {[%clk 0:03:00.4]} 6. Qe2 {[%clk 0:03:02.6]} 6... Nf6
{[%clk 0:03:00.2]} 7. e5 {[%clk 0:03:02.9]} 7... Nd5 {[%clk 0:03:00.6]} 8. c4
{[%clk 0:03:03.2]} 8... Ndb4 {[%clk 0:03:01.1]} 9. c5 {[%clk 0:03:03.1]} 9...
Bxc5 {[%clk 0:03:01.6]} 10. Nxc5 {[%clk 0:03:02.6]} 10... Nd4 {[%clk 0:03:02.2]}
11. Qg4 {[%clk 0:03:01.1]} 11... Ndc2+ {[%clk 0:03:02.8]} 12. Kd1 {[%clk
0:02:58.7]} 12... d6 {[%clk 0:03:02.8]} 13. Qxg7 {[%clk 0:02:27.6]} 13... dxc5+
{[%clk 0:03:02.8]} 14. Bd2 {[%clk 0:01:55.1]} 14... Rf8 {[%clk 0:03:02.6]} 15.
Nc3 {[%clk 0:01:17.4]} 15... Nxa1 {[%clk 0:03:01.7]} 16. Ne4 {[%clk 0:01:17.2]}
16... Nd5 {[%clk 0:01:28.9]} 17. Bb5+ {[%clk 0:01:05.1]} 17... Bd7 {[%clk
0:01:27.3]} 18. Bg5 {[%clk 0:00:59.5]} 18... Qc8 {[%clk 0:01:20.2]} 19. Bh6
{[%clk 0:00:36.1]} 19... Bxb5 {[%clk 0:01:07.5]} 20. Qxf8+ {[%clk 0:00:32.7]}
20... Kd7 {[%clk 0:01:07.9]} 21. Qxc5 {[%clk 0:00:15]} 21... Bc6 {[%clk
0:01:07.3]} 22. Kc1 {[%clk 0:00:12.8]} 22... b6 {[%clk 0:01:03.4]} 23. Nf6+
{[%clk 0:00:11.1]} 23... Nxf6 {[%clk 0:01:01.9]} 24. Rd1+ {[%clk 0:00:11.5]}
24... Nd5 {[%clk 0:00:50.7]} 25. Rxd5+ {[%clk 0:00:11.1]} 25... Bxd5 {[%clk
0:00:51.4]} 26. Qxd5+ {[%clk 0:00:11.3]} 26... Ke7 {[%clk 0:00:44.2]} 27. Bg5+
{[%clk 0:00:11]} 27... Kf8 {[%clk 0:00:44]} 28. Bf6 {[%clk 0:00:03.5]} 28... c6
{[%clk 0:00:32.8]} 29. Qd2 {[%clk 0:00:02.3]} 29... Qf5 {[%clk 0:00:21.5]} 30.
Qh6+ {[%clk 0:00:01.7]} 30... Ke8 {[%clk 0:00:21.5]} 0-1

[Event "Late-Titled-Tuesday-Blitz-September-05-2023"]
[Site "Chess.com"]
[Date "2023.09.05"]
[Round "4"]
[White "gunslinger222"]
[Black "larsmandreassen"]
[Result "1-0"]
[WhiteElo "2453"]
[BlackElo "2212"]
[TimeControl "180+1"]
[EndTime "14:39:34 PDT"]
[Termination "gunslinger222 won on time"]

1. d4 {[%clk 0:02:58.8]} 1... d5 {[%clk 0:02:58.8]} 2. c4 {[%clk 0:02:59.2]}
2... e6 {[%clk 0:02:57.8]} 3. Nf3 {[%clk 0:02:59.8]} 3... c5 {[%clk 0:02:57.4]}
4. cxd5 {[%clk 0:02:59.4]} 4... cxd4 {[%clk 0:02:57.3]} 5. Qxd4 {[%clk
0:02:57.8]} 5... exd5 {[%clk 0:02:55.8]} 6. Nc3 {[%clk 0:02:56.9]} 6... Be6
{[%clk 0:02:56]} 7. Bg5 {[%clk 0:02:50.6]} 7... f6 {[%clk 0:02:50.5]} 8. Bf4
{[%clk 0:02:38.5]} 8... Nc6 {[%clk 0:02:50.6]} 9. Qa4 {[%clk 0:02:38.7]} 9... g5
{[%clk 0:02:26.3]} 10. Bg3 {[%clk 0:02:27.6]} 10... Qb6 {[%clk 0:02:18.8]} 11.
Qb5 {[%clk 0:02:14]} 11... d4 {[%clk 0:02:07.1]} 12. Qxb6 {[%clk 0:02:07.2]}
12... axb6 {[%clk 0:02:06.7]} 13. Nb5 {[%clk 0:02:06.6]} 13... Bb4+ {[%clk
0:02:05.7]} 14. Kd1 {[%clk 0:01:58.9]} 14... Rxa2 {[%clk 0:01:43.5]} 15. Rxa2
{[%clk 0:01:44.3]} 15... Bxa2 {[%clk 0:01:37.8]} 16. Nfxd4 {[%clk 0:01:45]}
16... Nxd4 {[%clk 0:01:30.1]} 17. Nxd4 {[%clk 0:01:45.9]} 17... Kf7 {[%clk
0:01:24.9]} 18. e4 {[%clk 0:01:41.9]} 18... Ne7 {[%clk 0:01:19.2]} 19. Nb5
{[%clk 0:01:08.1]} 19... Bb3+ {[%clk 0:01:14.4]} 20. Ke2 {[%clk 0:00:59.7]}
20... Rc8 {[%clk 0:01:03.1]} 21. Nd4 {[%clk 0:00:59.5]} 21... Bc4+ {[%clk
0:00:55.1]} 22. Kf3 {[%clk 0:00:58.7]} 22... h5 {[%clk 0:00:31.9]} 23. h3 {[%clk
0:00:56.5]} 23... b5 {[%clk 0:00:24.3]} 24. Nxb5 {[%clk 0:00:53.3]} 24... Bxb5
{[%clk 0:00:15.4]} 25. Bxb5 {[%clk 0:00:52.3]} 25... Rc2 {[%clk 0:00:15.6]} 26.
b3 {[%clk 0:00:49.6]} 26... Rc3+ {[%clk 0:00:14.9]} 27. Ke2 {[%clk 0:00:50.1]}
27... Kg6 {[%clk 0:00:12.8]} 28. Bc4 {[%clk 0:00:45.4]} 28... Nc6 {[%clk
0:00:13.2]} 29. Rd1 {[%clk 0:00:42.7]} 29... h4 {[%clk 0:00:07.2]} 30. Bc7
{[%clk 0:00:40.8]} 30... Rc2+ {[%clk 0:00:05.6]} 31. Kf1 {[%clk 0:00:39.9]}
31... Bc5 {[%clk 0:00:05]} 32. Be2 {[%clk 0:00:36.5]} 32... Nd4 {[%clk
0:00:03.4]} 33. Bd3 {[%clk 0:00:32.3]} 33... Rb2 {[%clk 0:00:01.7]} 34. e5+
{[%clk 0:00:31.5]} 1-0